bitfinex-derivatives/quotes_ETHF0:USTF0_20250518
["timestamp","ask_amount","ask_price","bid_price","bid_amount"]
[1747528740433,1.3768,2477.7,2477.3,3.2078]
[1747528740434,0.80696,2477.4,2477.3,3.2078]
[1747528741832,2.13124,2477.5,2477.3,3.2078]
[1747528742135,2.13124,2477.5,2477.4,1.2526]
[1747528742832,0.80696,2477.4,2477.3,3.2078]
[1747528743033,2.13126,2477.4,2477.3,3.2078]
[1747528744037,2.13126,2477.4,2477.0,3.2078]
[1747528744038,0.80706,2477.1,2477.0,3.2078]
[1747528745045,0.80716,2476.8,2476.7,3.2078]
[1747528745938,1.3072,2477.0,2476.7,3.2078]
[1747528746133,0.80716,2476.8,2476.7,4.5012]
[1747528748235,1.3072,2477.0,2476.7,5.30838]
[1747528748437,0.80713,2476.9,2476.8,1.2868]
[1747528748632,1.3072,2477.0,2476.8,1.2868]
[1747528748840,1.3072,2477.0,2476.9,0.80713]
[1747528749140,2.11431,2477.0,2476.8,2.09394]
[1747528749344,1.3072,2477.0,2476.7,3.2078]
[1747528749644,0.80716,2476.8,2476.7,3.2078]
[1747528750344,1.3072,2477.0,2476.8,0.80714]
[1747528750555,17.9993,2477.3,2476.8,0.80714]
[1747528750755,1.3774,2477.2,2476.9,1.2978]
[1747528750949,0.80709,2477.0,2476.9,1.2978]
[1747528751646,4.5852,2477.2,2476.5,0.80724]
[1747528751841,0.8072,2476.7,2476.6,1.2978]
[1747528752240,0.8072,2476.7,2476.6,2.10502]
[1747528753544,0.8072,2476.7,2476.6,1.2978]
[1747528757353,0.80726,2476.5,2476.4,3.2078]
[1747528758054,0.80726,2476.5,2476.4,4.547]
[1747528758243,0.80726,2476.5,2476.4,6.2658]
[1747528758449,0.80726,2476.5,2476.4,3.058]
[1747528758648,22.42726,2476.5,2476.4,3.058]
[1747528759152,0.80742,2476.0,2475.9,1.19990718]
[1747528759357,2.01823,2476.4,2475.9,1.19990718]
[1747528759653,0.80742,2476.0,2475.9,2.49780718]
[1747528760351,0.80742,2476.0,2475.9,5.55580718]
[1747528760650,1.3701,2476.2,2475.9,6.36323718]
[1747528760948,0.80742,2476.0,2475.9,5.55580718]
[1747528761346,0.80742,2476.0,2475.9,4.3559]
[1747528761645,2.17752,2476.0,2475.9,4.3559]
[1747528761842,0.80742,2476.0,2475.9,4.3559]
[1747528765653,0.80755,2475.6,2475.5,3.2078]
[1747528766044,0.80755,2475.6,2475.5,6.2658]
[1747528766859,0.80755,2475.6,2475.5,7.635]
[1747528767361,0.80755,2475.6,2475.5,6.2658]
[1747528768156,0.80755,2475.6,2475.5,3.2078]
[1747528768558,0.80755,2475.6,2474.7,2.4133503]
[1747528768559,2.01913,2475.3,2474.7,2.4133503]
[1747528768755,0.80778,2475.0,2474.9,1.3548]
[1747528769456,0.80778,2474.9,2474.8,4.25790718]
[1747528769656,5.29728,2474.9,2474.8,4.25790718]
[1747528770260,5.29728,2474.9,2474.8,5.61270718]
[1747528770765,3.2078,2474.9,2474.8,5.61270718]
[1747528770957,0.80778,2474.9,2474.8,5.61270718]
[1747528771157,9.5377,2475.1,2474.8,5.61270718]
[1747528771467,3.8778,2475.2,2474.8,5.61270718]
[1747528771666,0.80772,2475.1,2474.8,5.61270718]
[1747528771964,0.80772,2475.1,2474.9,0.80776]
[1747528772166,0.80772,2475.1,2474.8,4.4128]
[1747528772167,0.80772,2475.1,2475.0,1.3869]
[1747528772370,0.80778,2474.9,2474.8,3.058]
[1747528772664,4.01558,2474.9,2474.8,3.058]
[1747528773166,5.36918,2474.9,2474.8,3.058]
[1747528774257,4.01558,2474.9,2474.8,3.058]
[1747528774651,3.2078,2474.9,2474.8,5.24301]
[1747528774856,1.3375,2475.1,2474.8,5.24301]
[1747528774857,0.80773,2475.1,2474.9,0.80777]
[1747528775067,0.80778,2474.9,2474.8,3.15018003]
[1747528775261,4.01558,2474.9,2474.8,3.15018003]
[1747528776253,5.35308,2474.9,2474.8,3.15018003]
[1747528776463,10.35308,2474.9,2474.8,3.15018003]
[1747528777159,10.35308,2474.9,2474.8,0.09218003]
[1747528777362,0.80794,2474.4,2474.3,1.3772]
[1747528778159,0.80794,2474.4,2474.3,4.4352]
[1747528778666,0.80794,2474.4,2474.3,3.058]
[1747528778863,2.14214,2474.4,2474.3,3.058]
[1747528784969,3.2078,2474.5,2474.3,3.058]
[1747528785179,3.2078,2474.8,2474.4,2.0128]
[1747528785364,0.80785,2474.7,2474.5,0.80789]
[1747528785563,0.80784,2474.7,2474.6,1.3719]
[1747528785863,2.08614,2474.7,2474.6,1.3719]
[1747528786870,0.80784,2474.7,2474.6,1.3719]
[1747528789375,20.53063,2474.8,2474.6,2.17978]
[1747528789567,0.80784,2474.7,2474.6,1.3719]
[1747528789766,0.80784,2474.7,2474.5,3.86589]
[1747528790969,0.80788,2474.6,2474.5,3.058]
[1747528791276,0.80787,2474.7,2474.5,3.8659]
[1747528791572,12.27562,2474.8,2474.6,0.80788]
[1747528792164,12.27562,2474.8,2474.6,1.49848]
[1747528792361,12.27562,2474.8,2474.7,0.80784]
[1747528792660,11.4678,2474.8,2474.7,0.80784]
[1747528792970,12.27561,2474.8,2474.6,1.49845]
[1747528793973,4.01552,2475.1,2474.6,2.71027]
[1747528794179,4.01552,2475.1,2474.9,0.80776]
[1747528794363,3.2078,2475.1,2475.0,1.44175]
[1747528795172,3.2078,2475.1,2475.0,3.692]
[1747528795367,4.01551,2475.1,2475.0,3.692]
[1747528795568,3.2078,2475.1,2475.0,4.49975]
[1747528796077,0.80767,2475.3,2475.1,0.80771]
[1747528796378,3.2078,2475.4,2475.2,0.80765]
[1747528796567,4.01542,2475.4,2475.2,0.80765]
[1747528796872,4.01542,2475.4,2475.1,0.6679]
[1747528797072,0.80765,2475.3,2475.1,1.47559]
[1747528797274,0.80765,2475.3,2475.1,4.53359]
[1747528798077,0.80768,2475.2,2475.1,0.6679]
[1747528798381,0.80766,2475.3,2475.1,0.6679]
[1747528798570,0.80768,2475.2,2475.1,0.6679]
[1747528798975,0.80768,2475.2,2475.1,1.47561]
[1747528799178,0.80766,2475.3,2475.1,1.47561]
[1747528799477,0.80768,2475.2,2475.1,1.47561]
[1747528799778,0.80768,2475.2,2475.1,0.6679]
[1747528800474,0.80766,2475.3,2475.1,1.47558]
[1747528800678,3.2078,2475.4,2475.3,0.80765]
[1747528801167,4.01541,2475.4,2475.3,3.058]
[1747528802176,0.80771,2475.1,2475.0,1.2533]
[1747528802379,17.7296,2475.3,2475.0,1.2533]
[1747528802573,0.80765,2475.3,2475.1,0.80769]
[1747528802780,0.80765,2475.3,2475.2,1.2533]
[1747528804383,0.80768,2475.2,2475.1,3.058]
[1747528804577,2.69268,2475.2,2475.1,3.058]
[1747528805177,19.6708,2475.4,2475.0,3.058]
[1747528805478,0.80769,2475.2,2475.1,1.2769]
[1747528806977,0.80771,2475.1,2475.0,3.058]
[1747528807184,2.75071,2475.1,2475.0,3.058]
[1747528807881,10.95851,2475.1,2475.0,3.058]
[1747528808378,12.17012,2475.1,2474.4,1.19990718]
[1747528808683,4.01571,2474.5,2474.4,1.19990718]
[1747528809283,4.01571,2474.5,2474.4,4.25790718]
[1747528809480,5.98821,2474.5,2474.4,4.25790718]
[1747528809685,10.98821,2474.5,2474.4,4.25790718]
[1747528810077,10.98821,2474.5,2474.4,3.058]
[1747528810277,0.80814,2473.8,2473.7,1.309]
[1747528812077,0.80817,2473.7,2473.6,3.058]
[1747528812385,0.80817,2473.7,2473.6,4.3945]
[1747528813082,0.80817,2473.7,2473.6,1.3365]
[1747528813881,0.8082,2473.6,2473.5,3.058]
[1747528814077,4.6763,2473.6,2473.5,3.058]
[1747528814580,22.5681,2473.6,2473.5,3.058]
[1747528815682,3.2078,2473.6,2473.5,3.058]
[1747528815980,3.2078,2473.6,2473.5,3.86624]
[1747528816184,3.2078,2473.6,2473.5,8.86624]
[1747528816380,0.6603,2474.3,2473.6,2.02051]
[1747528816574,1.67397628,2474.4,2474.2,0.80801]
[1747528816778,2.48191628,2474.4,2474.3,1.2531]
[1747528817186,2.48191628,2474.4,2474.3,4.3111]
[1747528817780,2.48191628,2474.4,2474.3,3.058]
[1747528818489,5.68971628,2474.4,2474.3,3.058]
[1747528822589,1.80811628,2474.4,2474.3,3.058]
[1747528823497,0.80794,2474.4,2474.3,3.058]
[1747528823893,2.19784,2474.4,2474.3,3.058]
[1747528828594,0.80794,2474.4,2474.3,3.058]
[1747528828991,4.01574,2474.4,2474.3,3.058]
[1747528829190,5.30024,2474.4,2474.3,3.058]
[1747528830501,10.30024,2474.4,2474.3,3.058]
[1747528830796,0.80817,2473.7,2473.6,1.37972511]
[1747528831595,0.80817,2473.7,2473.6,0.00862511]
[1747528832394,0.80817,2473.7,2473.6,1.29062511]
[1747528833100,4.01597,2473.7,2473.6,0.00862511]
[1747528835098,9.01597,2473.7,2473.6,0.00862511]
[1747528835300,0.8083,2473.3,2473.2,3.2078]
[1747528836502,16.524,2473.4,2473.1,4.434]
[1747528836503,0.80833,2473.2,2473.1,4.434]
[1747528836700,0.80833,2473.2,2473.1,3.058]
[1747528837204,0.80836,2473.2,2473.0,3.6958]
[1747528837406,16.524,2473.4,2473.0,3.6958]
[1747528837610,16.524,2473.4,2473.0,4.50418]
[1747528837811,3.2078,2473.7,2473.0,3.6958]
[1747528838023,0.80825,2473.5,2473.2,3.2078]
[1747528838213,0.80825,2473.5,2473.2,4.01611]
[1747528838514,0.80825,2473.5,2473.3,1.4656]
[1747528838712,19.7368,2473.7,2473.3,0.6573]
[1747528838919,4.01597,2473.7,2473.6,0.09218003]
[1747528839213,0.80817,2473.7,2473.6,3.29998003]
[1747528839614,0.80817,2473.7,2473.6,0.09218003]
[1747528840308,0.80817,2473.7,2473.6,0.76018003]
[1747528842316,0.80817,2473.7,2473.6,0.09218003]
[1747528851727,17.28117,2473.7,2473.6,0.09218003]
[1747528852422,19.99657,2473.7,2473.6,0.09218003]
[1747528854618,1.47885972,2473.8,2473.6,1.43498003]
[1747528854823,1.47885972,2473.8,2473.7,0.6421]
[1747528856731,0.80817,2473.7,2473.6,4.49298003]
[1747528857129,0.80817,2473.7,2473.6,1.43498003]
[1747528858133,2.18067,2473.7,2473.6,1.43498003]
[1747528858733,0.80817,2473.7,2473.6,1.43498003]
[1747528861232,0.80815,2473.8,2473.6,1.43498003]
[1747528861434,4.54931736,2473.9,2473.7,0.6917]
[1747528861634,1.01050179,2473.8,2473.7,1.3516]
[1747528862330,1.01050179,2473.8,2473.7,7.15977]
[1747528862637,1.01050179,2473.8,2473.7,10.36757]
[1747528863337,1.01050179,2473.8,2473.7,11.56707858]
[1747528863529,5.32544978,2474.1,2474.0,0.80807]
[1747528863733,5.32544978,2474.1,2474.0,12.20687]
[1747528864037,5.32544978,2474.1,2474.0,17.20687]
[1747528864231,5.32544978,2474.1,2474.0,20.26487]
[1747528864735,5.32544978,2474.1,2474.0,19.4568]
[1747528864736,6.13348978,2474.1,2474.0,19.4568]
[1747528864934,6.13348978,2474.1,2474.0,6.2658]
[1747528865136,6.13348978,2474.1,2474.0,6.35798003]
[1747528866032,1.34151736,2474.1,2474.0,12.16605003]
[1747528866339,1.34151736,2474.1,2474.0,16.60673984]
[1747528867037,1.34151736,2474.1,2474.0,24.82773984]
[1747528867231,1.67149509,2474.4,2474.3,0.80797]
[1747528867435,2.47945509,2474.4,2474.3,3.2078]
[1747528867629,2.47945509,2474.4,2474.3,8.2078]
[1747528867833,0.80796,2474.4,2474.3,8.8806]
[1747528868230,0.80796,2474.4,2474.3,11.9386]
[1747528868431,0.80796,2474.4,2474.3,6.9386]
[1747528868636,0.80796,2474.4,2474.3,3.7308]
[1747528870038,0.67335235,2474.5,2474.3,3.7308]
[1747528870234,0.67335235,2474.5,2474.4,0.80794]
[1747528870440,0.67335235,2474.5,2474.4,1.40334]
[1747528870835,2.1544547,2475.0,2474.9,0.80778]
[1747528871037,1.3467047,2475.0,2474.9,0.80778]
[1747528871336,1.3467047,2475.0,2474.9,3.86578]
[1747528871535,1.3467047,2475.0,2474.9,8.86578]
[1747528871731,1.67149509,2475.2,2475.1,0.80771]
[1747528871933,1.67149509,2475.2,2475.1,8.99671]
[1747528872241,1.67149509,2475.2,2475.1,18.67519878]
[1747528872739,1.67149509,2475.2,2475.1,8.99671]
[1747528873339,1.67149509,2475.2,2475.1,18.41477428]
[1747528873839,5.59401638,2475.3,2475.2,0.80768]
[1747528874039,0.8076,2475.5,2475.2,3.2078]
[1747528874235,0.8076,2475.5,2475.3,1.50122]
[1747528874443,0.8076,2475.5,2475.4,0.80761]
[1747528874937,1.67149509,2475.7,2475.3,0.6936]
[1747528874938,2.47902509,2475.7,2475.3,0.6936]
[1747528875139,1.67149509,2475.7,2475.6,0.80755]
[1747528877742,1.67149509,2475.7,2475.6,5.80755]
[1747528877936,5.0,2476.0,2475.9,0.80745]
[1747528878132,5.0,2476.0,2475.9,15.25925]
[1747528878339,5.0,2476.0,2475.9,24.67413707]
[1747528878639,5.0,2476.0,2475.9,25.32383707]
[1747528879535,0.70294077,2476.0,2475.9,25.32383707]
[1747528880335,0.70294077,2476.0,2475.9,25.4160171]
[1747528880542,5.59401638,2477.1,2476.7,0.80718]
[1747528880742,0.80716,2476.8,2476.7,3.2078]
[1747528881042,0.80703,2477.2,2477.0,0.80708]
[1747528881240,0.80706,2477.1,2476.9,0.80711]
[1747528881542,0.80706,2477.1,2476.9,0.8071]
[1747528881736,0.80706,2477.1,2477.0,1.2596]
[1747528883143,0.6574,2477.3,2477.2,0.80703]
[1747528883736,4.5199,2477.6,2477.4,0.80695]
[1747528884049,5.3268,2477.6,2477.5,1.2596]
[1747528884345,0.80703,2477.2,2477.1,3.058]
[1747528884647,1.3121,2477.6,2477.1,7.28951808]
[1747528885146,1.3121,2477.6,2477.2,0.80702]
[1747528885147,0.807,2477.3,2477.2,0.80702]
[1747528885346,1.3121,2477.6,2477.1,4.23151808]
[1747528885546,0.807,2477.3,2477.2,9.03602]
[1747528885847,0.807,2477.3,2477.2,10.35633]
[1747528886151,0.80703,2477.2,2477.1,3.058]
[1747528886343,2.12123,2477.2,2477.1,3.058]
[1747528886649,0.80703,2477.2,2477.1,3.058]
[1747528886846,0.80703,2477.2,2477.1,4.3783]
[1747528887148,0.80703,2477.2,2477.1,1.3203]
[1747528887847,0.80706,2477.1,2477.0,6.2658]
[1747528888043,2.07026,2477.1,2477.0,6.2658]
[1747528888353,2.07026,2477.1,2477.0,3.2078]
[1747528889242,2.07026,2477.1,2477.0,6.2658]
[1747528890151,2.07026,2477.1,2477.0,3.2078]
[1747528891149,0.80716,2476.8,2476.7,3.2078]
[1747528891446,0.80729,2476.4,2476.3,3.2078]
[1747528891945,0.80739,2476.1,2476.0,3.2078]
[1747528892952,1.2824,2476.5,2476.0,3.2078]
[1747528893149,9.5134,2476.5,2476.1,1.3228]
[1747528893350,9.5134,2476.5,2476.0,6.2658]
[1747528893552,0.80739,2476.1,2476.0,6.2658]
[1747528897143,14.73839,2476.5,2476.0,7.07319]
[1747528897144,0.80734,2476.3,2476.0,7.07319]
[1747528897345,0.80735,2476.2,2476.1,1.3089]
[1747528897651,4.4902,2476.5,2476.1,1.3089]
[1747528897853,4.4902,2476.5,2476.1,5.67009948]
[1747528898149,0.80732,2476.3,2476.2,0.6541]
[1747528898350,0.80731,2476.4,2476.3,0.80731]
[1747528898551,0.80732,2476.3,2476.2,0.6541]
[1747528900053,0.80732,2476.3,2476.2,1.46145]
[1747528900247,0.80732,2476.3,2476.2,0.6541]
[1747528900547,0.80735,2476.2,2476.1,3.058]
[1747528901147,0.80739,2476.1,2476.0,11.286]
[1747528901457,1.43649,2476.1,2476.0,3.058]
[1747528902243,0.6291,2476.1,2476.0,3.86542]
[1747528902441,2.07615,2476.3,2476.0,3.058]
[1747528902645,0.80739,2476.1,2476.0,3.058]
[1747528903053,1.45907,2476.2,2476.0,6.2658]
[1747528903252,0.6739,2476.4,2476.0,6.2658]
[1747528903555,0.80732,2476.3,2476.2,0.80733]
[1747528903853,0.80735,2476.3,2476.2,0.80735]
[1747528904956,0.6739,2476.4,2476.3,0.80732]
[1747528905258,3.2078,2476.5,2476.4,0.80729]
[1747528905553,3.2078,2476.5,2476.4,1.47499]
[1747528905752,3.2078,2476.5,2476.4,0.6677]
[1747528905753,4.01506,2476.5,2476.4,0.6677]
[1747528906154,4.01506,2476.5,2476.4,3.7257]
[1747528907159,4.01506,2476.5,2476.4,3.058]
[1747528908159,0.80739,2476.1,2476.0,4.68291]
[1747528908361,2.6782,2476.4,2476.0,4.68291]
[1747528908562,0.80737,2476.2,2476.0,4.68291]
[1747528908860,0.6815,2476.4,2476.3,0.80732]
[1747528909161,0.6815,2476.4,2476.3,7.07312]
[1747528909456,1.48879,2476.4,2476.3,3.058]
[1747528909653,0.6815,2476.4,2476.3,3.058]
[1747528909850,1.48879,2476.4,2476.3,3.95750003]
[1747528910457,0.6815,2476.4,2476.3,3.95750003]
[1747528910760,1.48879,2476.4,2476.3,3.15018003]
[1747528912258,1.48879,2476.4,2476.3,0.09218003]
[1747528913561,2.86729,2476.4,2476.3,0.09218003]
[1747528914463,1.48879,2476.4,2476.3,1.37098003]
[1747528915153,1.48879,2476.4,2476.3,4.42898003]
[1747528915561,2.82689,2476.4,2476.3,4.42898003]
[1747528915861,2.82689,2476.4,2476.3,4.3368]
[1747528916860,0.6815,2476.4,2476.3,4.42898003]
[1747528917168,1.48879,2476.4,2476.3,4.42898003]
[1747528917756,3.2078,2476.5,2476.3,4.42898003]
[1747528917963,4.01507,2476.5,2476.3,5.23629003]
[1747528918862,0.80729,2476.4,2476.3,4.42898003]
[1747528919959,0.80729,2476.4,2476.3,4.3368]
[1747528920467,0.80729,2476.4,2476.3,6.3427501]
[1747528921167,0.80729,2476.4,2476.3,5.5354201]
[1747528921768,0.80729,2476.4,2476.3,4.2566201]
[1747528922164,0.80729,2476.4,2476.3,1.1986201]
[1747528922659,2.79319,2476.4,2476.3,1.1986201]
[1747528923361,0.80736,2476.2,2476.1,1.20385764]
[1747528924060,2.12566,2476.2,2476.1,1.20385764]
[1747528924255,0.6896,2476.4,2476.2,0.80736]
[1747528924459,1.4969,2476.4,2476.3,1.992]
[1747528925068,0.6896,2476.4,2476.3,5.14218003]
[1747528925260,0.6896,2476.4,2476.3,5.94951003]
[1747528926767,0.80725,2476.6,2476.4,0.80727]
[1747528926964,0.80725,2476.6,2476.5,2.08946]
[1747528927267,0.80725,2476.6,2476.5,1.2822]
[1747528927870,2.11085,2476.6,2476.5,1.2822]
[1747528928264,2.11085,2476.6,2476.5,4.3402]
[1747528929569,0.80725,2476.6,2476.5,4.3402]
[1747528929770,0.80725,2476.6,2476.5,5.14746]
[1747528930662,0.80725,2476.6,2476.5,4.3402]
[1747528931073,2.18705,2476.6,2476.5,4.3402]
[1747528931773,2.18705,2476.6,2476.5,3.058]
[1747528933272,0.80733,2476.3,2476.2,8.287]
[1747528933472,0.80733,2476.3,2476.1,0.80738]
[1747528933669,0.80733,2476.3,2476.2,1.3052]
[1747528933871,0.80739,2476.1,2476.0,1.20385764]
[1747528934373,5.80739,2476.1,2476.0,3.21955764]
[1747528934581,6.47029,2476.1,2476.0,3.21955764]
[1747528934870,7.76329,2476.1,2476.0,3.21955764]
[1747528935372,2.76329,2476.1,2476.0,0.16155764]
[1747528935576,7.76329,2476.1,2476.0,0.16155764]
[1747528935877,0.8075,2475.8,2475.6,2.11273]
[1747528936174,0.80753,2475.7,2475.5,3.058]
[1747528936374,0.80751,2475.8,2475.5,3.86558]
[1747528936571,0.80744,2476.0,2475.8,0.80749]
[1747528936763,1.9559,2476.1,2475.9,0.80744]
[1747528936966,1.9559,2476.1,2475.7,0.6551]
[1747528937167,0.8074,2476.1,2475.9,3.86545]
[1747528937467,0.8074,2476.1,2475.9,3.058]
[1747528937668,0.80743,2476.0,2475.9,3.058]
[1747528938581,0.80742,2476.1,2475.9,3.058]
[1747528938770,0.80742,2476.1,2475.9,3.86545]
[1747528938980,6.599609,2476.3,2476.2,0.80736]
[1747528939271,1.32557658,2476.3,2476.2,0.80736]
[1747528939673,1.32557658,2476.3,2476.0,8.02248634]
[1747528940179,1.32557658,2476.3,2476.0,8.11466637]
[1747528940380,0.80736,2476.2,2476.0,4.60698003]
[1747528940578,2.13291658,2476.3,2476.1,0.80739]
[1747528940780,0.80736,2476.2,2476.1,0.80739]
[1747528941078,0.80736,2476.2,2476.0,4.60698003]
[1747528941276,0.80739,2476.1,2476.0,4.60698003]
[1747528941477,2.13293658,2476.3,2476.0,3.79958003]
[1747528941681,1.32557658,2476.3,2476.2,0.80736]
[1747528942671,0.80728,2476.5,2476.4,0.8073]
[1747528942873,0.8073,2476.4,2476.3,0.80731]
[1747528943277,0.8073,2476.4,2476.3,3.86531]
[1747528943475,0.80728,2476.5,2476.4,0.80729]
[1747528943782,0.8073,2476.4,2476.3,3.058]
[1747528945084,2.13729,2476.5,2476.3,3.86533]
[1747528945482,0.8073,2476.4,2476.3,3.86533]
[1747528946085,0.8073,2476.4,2476.3,3.058]
[1747528946380,0.8073,2476.4,2476.3,3.86533]
[1747528947089,2.13728,2476.5,2476.3,3.86533]
[1747528947287,0.8073,2476.4,2476.3,3.058]
[1747528947691,2.13727,2476.5,2476.4,0.8073]
[1747528948187,2.13727,2476.5,2476.4,3.8653]
[1747528948487,2.36418927,2476.7,2476.4,3.058]
[1747528948693,1.01058927,2476.7,2476.6,0.80723]
[1747528951191,0.80715,2476.9,2476.8,0.80716]
[1747528951582,0.8072,2476.7,2476.6,5.25629336]
[1747528951790,0.80713,2476.9,2476.8,0.80715]
[1747528952091,1.01058927,2477.0,2476.9,0.80713]
[1747528953190,1.01058927,2477.0,2476.9,3.86513]
[1747528954100,1.81768927,2477.0,2476.9,3.058]
[1747528954391,3.11588927,2477.0,2476.9,3.15018003]
[1747528954993,0.80733,2476.3,2476.2,1.6055203]
[1747528956294,2.78163,2476.3,2476.2,1.6055203]
[1747528958394,1.9743,2476.3,2475.8,4.01527]
[1747528958594,0.80742,2476.1,2475.8,4.01527]
[1747528958792,0.80743,2476.0,2475.8,4.01527]
[1747528958983,1.9743,2476.3,2475.8,3.2078]
[1747528959188,2.78164,2476.3,2476.1,0.80738]
[1747528959390,2.78164,2476.3,2475.8,6.2658]
[1747528959589,1.9743,2476.3,2476.2,0.80736]
[1747528959796,0.6761,2476.3,2476.2,0.80736]
[1747528959989,1.4639,2476.4,2476.2,0.80736]
[1747528960194,1.4639,2476.4,2476.1,3.86537]
[1747528961094,0.80734,2476.3,2476.1,0.80737]
[1747528962384,1.66718927,2476.4,2476.0,3.058]
[1747528962591,0.80737,2476.2,2476.0,3.058]
[1747528962791,0.80736,2476.2,2476.0,3.8654]
[1747528962986,1.3893,2476.3,2476.0,3.8654]
[1747528963191,0.80739,2476.1,2476.0,3.8654]
[1747528963597,0.80738,2476.2,2476.0,3.058]
[1747528963897,0.80738,2476.2,2476.0,3.86541]
[1747528964098,0.80739,2476.1,2476.0,3.86541]
[1747528964300,0.80739,2476.1,2476.0,3.058]
[1747528965094,0.80739,2476.1,2476.0,3.86543]
[1747528965292,0.80738,2476.2,2476.0,3.86543]
[1747528965702,3.8644,2476.4,2476.1,5.40946717]
[1747528965902,0.80736,2476.2,2476.1,6.10396717]
[1747528966097,0.80736,2476.2,2476.1,5.29657717]
[1747528967001,1.3244,2476.3,2476.0,3.86541]
[1747528967002,0.80739,2476.1,2476.0,3.058]
[1747528967202,0.80746,2475.9,2475.8,3.2078]
[1747528967396,2.01877,2475.8,2475.5,3.2078]
[1747528967601,0.80756,2475.6,2475.5,3.2078]
[1747528968096,0.80762,2475.4,2475.3,1.6055203]
[1747528968897,2.13202,2475.4,2475.3,1.6055203]
[1747528969200,0.80775,2475.0,2474.9,3.2078]
[1747528969592,0.80775,2475.0,2474.9,3.29998003]
[1747528969997,0.80775,2475.0,2474.7,2.3000203]
[1747528969998,9.01555,2475.0,2474.7,1.6055203]
[1747528970194,0.80782,2474.8,2474.7,1.6055203]
[1747528970698,2.77252,2474.8,2474.7,1.6055203]
[1747528970886,1.9647,2474.8,2474.7,1.6055203]
[1747528971087,0.6295,2474.8,2474.7,2.4133703]
[1747528971288,1.45739,2474.9,2474.7,1.6055203]
[1747528971501,0.80782,2474.8,2474.7,1.6055203]
[1747528971701,2.14302,2474.8,2474.7,2.8903203]
[1747528972502,2.14302,2474.8,2474.7,1.2848]
[1747528973003,2.14302,2474.8,2474.6,3.7008]
[1747528973205,2.14302,2474.8,2474.6,4.9948]
[1747528973803,1.3352,2474.8,2474.7,1.294]
[1747528973999,0.6496,2474.9,2474.7,2.10185]
[1747528974501,0.6496,2474.9,2474.8,1.294]
[1747528974502,1.45739,2474.9,2474.8,1.294]
[1747528974702,2.72679,2474.9,2474.8,1.294]
[1747528975199,1.919,2474.9,2474.8,4.352]
[1747528976004,2.72679,2474.9,2474.8,4.352]
[1747528978004,2.72679,2474.9,2474.8,3.058]
[1747528980599,7.72679,2474.9,2474.8,3.058]
[1747528980800,7.72679,2474.9,2474.4,3.2078]
[1747528980801,0.80792,2474.5,2474.4,3.2078]
[1747528981001,0.80791,2474.6,2474.4,4.01573]
[1747528981201,0.80791,2474.6,2474.5,4.3547]
[1747528981599,2.12651,2474.6,2474.5,4.3547]
[1747528981806,0.6496,2474.9,2474.5,4.3547]
[1747528982006,1.45741,2474.9,2474.7,0.80784]
[1747528982206,1.45741,2474.9,2474.8,1.2601]
[1747528983205,1.3186,2475.0,2474.8,5.12592]
[1747528983405,0.80779,2474.9,2474.8,4.3181]
[1747528983813,0.80778,2475.0,2474.9,0.09218003]
[1747528984111,2.12633,2475.1,2474.9,5.21805003]
[1747528984310,0.80775,2475.0,2474.9,4.41028003]
[1747528984812,0.80775,2475.0,2474.9,4.3181]
[1747528985412,1.3186,2475.1,2474.9,5.12587]
[1747528985413,2.12633,2475.1,2474.9,5.12587]
[1747528985609,0.80775,2475.0,2474.9,4.3181]
[1747528987111,2.12634,2475.1,2474.9,4.3181]
[1747528987312,2.12634,2475.1,2474.9,5.12587]
[1747528988007,3.2078,2475.4,2474.9,6.33757]
[1747528988216,3.2078,2475.4,2475.3,0.80766]
[1747528989210,3.2078,2475.4,2475.3,3.86566]
[1747528989610,4.01542,2475.4,2475.3,3.058]
[1747528990116,0.8076,2475.5,2475.3,5.12816]
[1747528990317,0.80762,2475.4,2475.3,4.3205]
[1747528993114,3.2078,2475.6,2475.5,0.80759]
[1747528994114,3.2078,2475.6,2475.5,3.86559]
[1747528994315,4.01536,2475.6,2475.5,3.86559]
[1747528994515,0.80755,2475.7,2475.5,3.86559]
[1747528994715,0.6661,2475.8,2475.7,0.80752]
[1747528995009,5.30578,2475.9,2475.7,0.80752]
[1747528995210,5.30578,2475.9,2475.8,1.2548]
[1747528995819,5.30576,2475.9,2475.8,1.2548]
[1747528996021,2.09796,2475.9,2475.8,1.2548]
[1747528996212,2.09796,2475.9,2475.8,4.3128]
[1747528997414,2.09796,2475.9,2475.8,3.058]
[1747528997625,5.30576,2475.9,2475.8,3.058]
[1747528998213,0.80756,2475.6,2475.4,2.0694]
[1747528998513,0.80755,2475.7,2475.5,0.80758]
[1747528999217,0.80755,2475.7,2475.5,3.86558]
[1747529000422,4.4983,2475.9,2475.5,3.058]
[1747529000719,0.80756,2475.6,2475.5,3.058]
[1747529001116,4.4983,2475.9,2475.5,3.058]
[1747529001313,5.30578,2475.9,2475.7,0.80752]
[1747529001514,5.30578,2475.9,2475.8,1.3763]
[1747529002017,5.30578,2475.9,2475.8,1.46848003]
[1747529003226,5.30578,2475.9,2475.8,4.52648003]
[1747529003425,5.30578,2475.9,2475.8,3.15018003]
[1747529004227,5.30578,2475.9,2475.8,0.09218003]
[1747529005225,5.30578,2475.9,2474.7,1.6055203]
[1747529005226,2.01905,2475.5,2474.7,1.6055203]
[1747529005428,0.80772,2475.1,2475.0,1.3204]
[1747529005927,2.01915,2475.3,2474.7,2.4133503]
[1747529006123,0.80779,2474.9,2474.8,8.83195829]